{"text_format":"3","workbook":"xlsx","n_sheets":5,"sheets":["Инструкция","С1","прил. 3 МУ","Прил. 2 МУ","реестр"],"not_rendered":{"macros":1,"external_links":2,"defined_names":10},"read":"whole","date_system":"1900"}

{"sheet":"Инструкция","index":0,"n_rows":16,"n_cols":4,"rows_kept":16,"merged":[[1,1,2,1],[1,2,2,2],[1,3,2,3],[4,1,5,1],[7,1,7,3],[8,1,8,3],[9,1,9,3],[10,1,10,3],[11,1,11,3],[12,1,12,3],[13,1,13,3],[14,1,14,3],[15,0,15,3]]}
[null,"Заявители","Условия","Стоимость ТП"]
[null,"Физ. Лица до 15 кВт по 3 кат. надежности, на уровне напряжения 0,4 кВ и ниже","Расстояние до объектов ЭСХ уровня напряжения 0,4 кВ и ниже не более 300 м. в городах и поселках городского типа и не более 500 м. в сельской местности, один раз в 3 года в границах субъекта РФ.","Не более  10 000 руб.* за кВт и не менее: 3 000 руб. за кВт – с 01.06.2022; 4 000 руб. за кВт – с 01.06.2023;       5 000 руб.за кВт – с 01.06.2024  для лиц, получающих льготы от государства (многодетные семьи, инвалиды, ветераны и т.д.) 1000 руб. за кВт или плата рассчитанная с применением стандартизированных ставок (выбирается наименьшая) льготные ставки индексируются на ИЦП в строительстве (если нет то ИПЦ)"]
[]
[null,"Юр. лица и ИП до 150 кВт по 3 категории надежности, на уровне напряжения 0,4 кВ и ниже","Расстояние до объектов ЭСХ уровня напряжения 0,4 кВ и ниже не более 200 м. в городах и поселках городского типа и не более 300 м. в сельской местности, один раз в 3 года в границах субъекта РФ.","Плата в соответствии со стандартизированными ставками С1 + С8 (затраты на реализацию мероприятий «последней мили» не включается)"]
[null,"Для иных случаев","с 1 июля 2022 года по 31 декабря 2022 года исключено с 01.01.2024","50 % от размера платы за мероприятия «последней мили» (платная рассрочка)"]
[null,null,"с 1 января 2023 г. ","100 % плата за мероприятия «последней мили» (платная рассрочка)"]
[]
["№ п/п","Советы по заполнению"]
[1,"В таблице \"реестр\" указывать мероприятия ТП за 3 предыдущих года в 1 таблице."]
[2,"Структура листа защищена, не пытайтесь, что-либо поменять, ввод собственных  данных отличных от раскрывающего списка будет расцениваться как ошибка заполнения после чего данный файл будет отправлен Вам на доработку. "]
[3,"В таблице должны быть заполнены все ячейки блока, (под блоком понимается \"блок ВЛ, блок КЛ, блок ТП и т. д.), ячейки в столбцах с В по U заполняются все без исключения."]
[4,"В одной строке указываем все мероприятия, выполненные для реализации Тех. прис. (например: для подключения заявителя требуется прокладка КЛ, строительство ВЛ и трансформаторной подстанции, все эти мероприятия указываем в одной строке)"]
[5,"В случаи если для реализации Тех. прис. необходимо построить несколько объектов 1 группы, но с разными техническими параметрами, в этом случаи  переходим на строку ниже вносим теже данные объекта и заявителя и указываем объект не вошедший  выше.(например: для подключения заявителя требуется прокладка КЛ до трансформаторной подстанции и после, но технические характеристики этих КЛ разные, в этом случаи столбцы с B по U в двух строках заполняются идентично)"]
[6,"Мероприятие относится к определенному году на основании столбца J."]
[7,"В столбце под названием \"пропускная способность, кВт\" указываем заявленную мощность."]
["По всем вопросам обращаться к Мартынову Дмитрию Николаевичу, тел. (8332) 27-27-43 доб. 4342"]

{"sheet":"С1","index":1,"n_rows":5,"n_cols":6,"rows_kept":5}
["N п/п","Обозначение","Наименование","Единица измерения"]
["1","С1","стандартизированная тарифная ставка на покрытие расходов на технологическое присоединение энергопринимающих устройств потребителей электрической энергии, объектов электросетевого хозяйства, принадлежащих сетевым организациям и иным лицам, на подготовку и выдачу сетевой организацией технических условий заявителю и проверку сетевой организацией выполнения технических условий заявителем","рублей за одно присоединение"]
["1.1","С1.1","стандартизированная тарифная ставка на покрытие расходов сетевой организации на подготовку и выдачу сетевой организацией технических условий заявителю","рублей за одно присоединение"]
["1.2.1","С1.2.1","стандартизированная тарифная ставка на покрытие расходов на выдачу уведомления об обеспечении сетевой организацией возможности присоединения к электрическим сетям Заявителям, указанным в абзаце шестом пункта 24 Методических указаний по определению размера платы за технологическое присоединение к электрическим сетям","рублей за одно присоединение",null,"С1.2.1 - для случаев технологического присоединения объектов Заявителей, указанных в пунктах 12(1), 13(2) - 13(5) и 14 Правил технологического присоединения (Собрание законодательства Российской Федерации, 2004, N 52, ст. 5525; 2022, N 27, ст. 4863), если технологическое присоединение энергопринимающих устройств таких Заявителей осуществляется на уровне напряжения 0,4 кВ и ниже;"]
["1.2.2","С1.2.2","стандартизированная тарифная ставка на покрытие расходов на проверку выполнения технических условий Заявителями, указанными в абзаце седьмом пункта 24 Методических указаний по определению размера платы за технологическое присоединение к электрическим сетям","рублей за одно присоединение",null,"С1.2.2 - для случаев технологического присоединения объектов Заявителей, не предусмотренных абзацем шестым настоящего пункта"]

{"sheet":"прил. 3 МУ","index":2,"n_rows":84,"n_cols":5,"rows_kept":84,"merged":[[0,0,0,4],[1,0,1,4],[2,0,3,0],[2,1,3,1],[4,0,4,4],[24,0,24,4],[44,0,44,4],[64,0,64,4]]}
["Расчет\nфактических расходов на выполнение мероприятий\nпо технологическому присоединению, предусмотренных\nподпунктами \"а\" и \"в\" пункта 16 Методических указаний\nпо определению размера платы за технологическое\nприсоединение к электрическим сетям\n(выполняется отдельно по мероприятиям, предусмотренным\nподпунктами \"а\" и \"в\" пункта 16 Методических указаний\nпо определению размера платы за технологическое\nприсоединение к электрическим сетям)\n"]
["на 2025 год"]
["N п/п","Показатели","Данные за предыдущий период регулирования (n-2)","Данные за год (n-3), предшествующий предыдущему периоду регулирования","Данные за год (n-4), предшествующий году (n-3)"]
[null,null,2023,2022,2021]
[{"$f":"С1!B2","v":"С1"}]
["1.","Расходы по выполнению мероприятий по технологическому присоединению, всего",{"$f":"SUM(C7,C8,C9,C10,C11,C20,)","v":0},{"$f":"SUM(D7,D8,D9,D10,D11,D20,)","v":0},{"$f":"SUM(E7,E8,E9,E10,E11,E20,)","v":0}]
["1.1.","Вспомогательные материалы"]
["1.2.","Энергия на хозяйственные нужды"]
["1.3.","Оплата труда ППП"]
["1.4.","Отчисления на страховые взносы"]
["1.5.","Прочие расходы, всего, в том числе:",{"$f":"SUM(C12:C14)","v":0},{"$f":"SUM(D12:D14)","v":0},{"$f":"SUM(E12:E14)","v":0}]
["1.5.1.","- работы и услуги производственного характера"]
["1.5.2.","- налоги и сборы, уменьшающие налогооблагаемую базу на прибыль организаций, всего"]
["1.5.3.","- работы и услуги непроизводственного характера, в т.ч.:",{"$f":"SUM(C15:C19)","v":0},{"$f":"SUM(D15:D19)","v":0},{"$f":"SUM(E15:E19)","v":0}]
["1.5.3.1.","услуги связи"]
["1.5.3.2.","расходы на охрану и пожарную безопасность"]
["1.5.3.3.","расходы на информационное обслуживание, иные услуги, связанные с деятельностью по технологическому присоединению"]
["1.5.3.4.","плата за аренду имущества"]
["1.5.3.5.","другие прочие расходы, связанные с производством и реализацией"]
["1.6.","Внереализационные расходы, всего",{"$f":"SUM(C21:C24)","v":0},{"$f":"SUM(D21:D24)","v":0},{"$f":"SUM(E21:E24)","v":0}]
["1.6.1.","- расходы на услуги банков"]
["1.6.2.","- проценты за пользование кредитом"]
["1.6.3.","- прочие обоснованные расходы"]
["1.6.4.","- денежные выплаты социального характера (по Коллективному договору)"]
[{"$f":"С1!B3","v":"С1.1"}]
["1.","Расходы по выполнению мероприятий по технологическому присоединению, всего",{"$f":"SUM(C27,C28,C29,C30,C31,C40,)","v":0},{"$f":"SUM(D27,D28,D29,D30,D31,D40,)","v":0},{"$f":"SUM(E27,E28,E29,E30,E31,E40,)","v":0}]
["1.1.","Вспомогательные материалы"]
["1.2.","Энергия на хозяйственные нужды"]
["1.3.","Оплата труда ППП"]
["1.4.","Отчисления на страховые взносы"]
["1.5.","Прочие расходы, всего, в том числе:",{"$f":"SUM(C32:C34)","v":0},{"$f":"SUM(D32:D34)","v":0},{"$f":"SUM(E32:E34)","v":0}]
["1.5.1.","- работы и услуги производственного характера"]
["1.5.2.","- налоги и сборы, уменьшающие налогооблагаемую базу на прибыль организаций, всего"]
["1.5.3.","- работы и услуги непроизводственного характера, в т.ч.:",{"$f":"SUM(C35:C39)","v":0},{"$f":"SUM(D35:D39)","v":0},{"$f":"SUM(E35:E39)","v":0}]
["1.5.3.1.","услуги связи"]
["1.5.3.2.","расходы на охрану и пожарную безопасность"]
["1.5.3.3.","расходы на информационное обслуживание, иные услуги, связанные с деятельностью по технологическому присоединению"]
["1.5.3.4.","плата за аренду имущества"]
["1.5.3.5.","другие прочие расходы, связанные с производством и реализацией"]
["1.6.","Внереализационные расходы, всего",{"$f":"SUM(C41:C44)","v":0},{"$f":"SUM(D41:D44)","v":0},{"$f":"SUM(E41:E44)","v":0}]
["1.6.1.","- расходы на услуги банков"]
["1.6.2.","- проценты за пользование кредитом"]
["1.6.3.","- прочие обоснованные расходы"]
["1.6.4.","- денежные выплаты социального характера (по Коллективному договору)"]
[{"$f":"С1!B4","v":"С1.2.1"}]
["1.","Расходы по выполнению мероприятий по технологическому присоединению, всего",{"$f":"SUM(C47,C48,C49,C50,C51,C60,)","v":0},{"$f":"SUM(D47,D48,D49,D50,D51,D60,)","v":0},{"$f":"SUM(E47,E48,E49,E50,E51,E60,)","v":0}]
["1.1.","Вспомогательные материалы"]
["1.2.","Энергия на хозяйственные нужды"]
["1.3.","Оплата труда ППП"]
["1.4.","Отчисления на страховые взносы"]
["1.5.","Прочие расходы, всего, в том числе:",{"$f":"SUM(C52:C54)","v":0},{"$f":"SUM(D52:D54)","v":0},{"$f":"SUM(E52:E54)","v":0}]
["1.5.1.","- работы и услуги производственного характера"]
["1.5.2.","- налоги и сборы, уменьшающие налогооблагаемую базу на прибыль организаций, всего"]
["1.5.3.","- работы и услуги непроизводственного характера, в т.ч.:",{"$f":"SUM(C55:C59)","v":0},{"$f":"SUM(D55:D59)","v":0},{"$f":"SUM(E55:E59)","v":0}]
["1.5.3.1.","услуги связи"]
["1.5.3.2.","расходы на охрану и пожарную безопасность"]
["1.5.3.3.","расходы на информационное обслуживание, иные услуги, связанные с деятельностью по технологическому присоединению"]
["1.5.3.4.","плата за аренду имущества"]
["1.5.3.5.","другие прочие расходы, связанные с производством и реализацией"]
["1.6.","Внереализационные расходы, всего",{"$f":"SUM(C61:C64)","v":0},{"$f":"SUM(D61:D64)","v":0},{"$f":"SUM(E61:E64)","v":0}]
["1.6.1.","- расходы на услуги банков"]
["1.6.2.","- проценты за пользование кредитом"]
["1.6.3.","- прочие обоснованные расходы"]
["1.6.4.","- денежные выплаты социального характера (по Коллективному договору)"]
[{"$f":"С1!B5","v":"С1.2.2"}]
["1.","Расходы по выполнению мероприятий по технологическому присоединению, всего",{"$f":"SUM(C67,C68,C69,C70,C71,C80,)","v":0},{"$f":"SUM(D67,D68,D69,D70,D71,D80,)","v":0},{"$f":"SUM(E67,E68,E69,E70,E71,E80,)","v":0}]
["1.1.","Вспомогательные материалы"]
["1.2.","Энергия на хозяйственные нужды"]
["1.3.","Оплата труда ППП"]
["1.4.","Отчисления на страховые взносы"]
["1.5.","Прочие расходы, всего, в том числе:",{"$f":"SUM(C72:C74)","v":0},{"$f":"SUM(D72:D74)","v":0},{"$f":"SUM(E72:E74)","v":0}]
["1.5.1.","- работы и услуги производственного характера"]
["1.5.2.","- налоги и сборы, уменьшающие налогооблагаемую базу на прибыль организаций, всего"]
["1.5.3.","- работы и услуги непроизводственного характера, в т.ч.:",{"$f":"SUM(C75:C79)","v":0},{"$f":"SUM(D75:D79)","v":0},{"$f":"SUM(E75:E79)","v":0}]
["1.5.3.1.","услуги связи"]
["1.5.3.2.","расходы на охрану и пожарную безопасность"]
["1.5.3.3.","расходы на информационное обслуживание, иные услуги, связанные с деятельностью по технологическому присоединению"]
["1.5.3.4.","плата за аренду имущества"]
["1.5.3.5.","другие прочие расходы, связанные с производством и реализацией"]
["1.6.","Внереализационные расходы, всего",{"$f":"SUM(C81:C84)","v":0},{"$f":"SUM(D81:D84)","v":0},{"$f":"SUM(E81:E84)","v":0}]
["1.6.1.","- расходы на услуги банков"]
["1.6.2.","- проценты за пользование кредитом"]
["1.6.3.","- прочие обоснованные расходы"]
["1.6.4.","- денежные выплаты социального характера (по Коллективному договору)"]

{"sheet":"Прил. 2 МУ","index":3,"n_rows":27,"n_cols":6,"rows_kept":27,"merged":[[0,0,0,5],[1,0,1,5],[2,0,3,0],[2,1,3,1],[2,2,2,4],[10,0,10,5],[11,0,12,0],[11,1,12,1],[11,2,11,4],[19,0,19,5],[20,0,21,0],[20,1,21,1],[20,2,20,4]]}
["Расходы\nна выполнение мероприятий по технологическому присоединению,\nпредусмотренных подпунктами \"а\" и \"в\" пункта 16 Методических\nуказаний по определению размера платы за технологическое\nприсоединение к электрическим сетям"]
["за 2023 год"]
["N п/п","Наименование мероприятий","Информация для расчета стандартизированной тарифной ставки С1"]
[null,null,"Расходы по каждому мероприятию (руб.)","Количество технологических присоединений (шт.)","Объем максимальной мощности (кВт)","Расходы на одно присоединение (руб. на одно ТП)"]
[1,2,3,4,5,6]
["1.","Подготовка и выдача сетевой организацией технических условий Заявителю",{"$f":"'прил. 3 МУ'!C26","v":0},{"$f":"реестр!J52","v":0},{"$f":"реестр!F52+реестр!F53","v":0},{"$f":"IF(D6=0,0,C6/D6)","v":0}]
["2.","Проверка сетевой организацией выполнения технических условий Заявителем","-","-","-","-"]
["2.1","Выдача сетевой организацией уведомления об обеспечении сетевой организацией возможности присоединения к электрическим сетям Заявителям, указанным в абзаце шестом пункта 24 Методических указаний по определению размера платы за технологическое присоединение к электрическим сетям",{"$f":"'прил. 3 МУ'!C46","v":0},{"$f":"D6-D9","v":0},{"$f":"E6-E9","v":0},{"$f":"IF(D8=0,0,C8/D8)","v":0}]
["2.2","Проверка сетевой организацией выполнения технических условий Заявителями, указанными в абзаце седьмом пункта 24 Методических указаний по определению размера платы за технологическое присоединение к электрическим сетям",{"$f":"'прил. 3 МУ'!C66","v":0},{"$f":"реестр!Q52","v":0},{"$f":"реестр!F52","v":0},{"$f":"IF(D9=0,0,C9/D9)","v":0}]
[]
["за 2022 год"]
["N п/п","Наименование мероприятий","Информация для расчета стандартизированной тарифной ставки С1"]
[null,null,"Расходы по каждому мероприятию (руб.)","Количество технологических присоединений (шт.)","Объем максимальной мощности (кВт)","Расходы на одно присоединение (руб. на одно ТП)"]
[1,2,3,4,5,6]
["1.","Подготовка и выдача сетевой организацией технических условий Заявителю",{"$f":"'прил. 3 МУ'!D26","v":0},{"$f":"реестр!J50","v":0},{"$f":"реестр!F50+реестр!F51","v":0},{"$f":"IF(D15=0,0,C15/D15)","v":0}]
["2.","Проверка сетевой организацией выполнения технических условий Заявителем","-","-","-","-"]
["2.1","Выдача сетевой организацией уведомления об обеспечении сетевой организацией возможности присоединения к электрическим сетям Заявителям, указанным в абзаце шестом пункта 24 Методических указаний по определению размера платы за технологическое присоединение к электрическим сетям",{"$f":"'прил. 3 МУ'!D46","v":0},{"$f":"D15-D18","v":0},{"$f":"E15-E18","v":0},{"$f":"IF(D17=0,0,C17/D17)","v":0}]
["2.2","Проверка сетевой организацией выполнения технических условий Заявителями, указанными в абзаце седьмом пункта 24 Методических указаний по определению размера платы за технологическое присоединение к электрическим сетям",{"$f":"'прил. 3 МУ'!D66","v":0},{"$f":"реестр!Q50","v":0},{"$f":"реестр!F50","v":0},{"$f":"IF(D18=0,0,C18/D18)","v":0}]
[]
["за 2021 год"]
["N п/п","Наименование мероприятий","Информация для расчета стандартизированной тарифной ставки С1"]
[null,null,"Расходы по каждому мероприятию (руб.)","Количество технологических присоединений (шт.)","Объем максимальной мощности (кВт)","Расходы на одно присоединение (руб. на одно ТП)"]
[1,2,3,4,5,6]
["1.","Подготовка и выдача сетевой организацией технических условий Заявителю",{"$f":"'прил. 3 МУ'!E26","v":0},{"$f":"реестр!J48","v":0},{"$f":"реестр!F48+реестр!F49","v":0},{"$f":"IF(D24=0,0,C24/D24)","v":0}]
["2.","Проверка сетевой организацией выполнения технических условий Заявителем","-","-","-","-"]
["2.1","Выдача сетевой организацией уведомления об обеспечении сетевой организацией возможности присоединения к электрическим сетям Заявителям, указанным в абзаце шестом пункта 24 Методических указаний по определению размера платы за технологическое присоединение к электрическим сетям",{"$f":"'прил. 3 МУ'!E46","v":0},{"$f":"D24-D27","v":0},{"$f":"E24-E27","v":0},{"$f":"IF(D26=0,0,C26/D26)","v":0}]
["2.2","Проверка сетевой организацией выполнения технических условий Заявителями, указанными в абзаце седьмом пункта 24 Методических указаний по определению размера платы за технологическое присоединение к электрическим сетям",{"$f":"'прил. 3 МУ'!E66","v":0},{"$f":"реестр!Q48","v":0},{"$f":"реестр!F48","v":0},{"$f":"IF(D27=0,0,C27/D27)","v":0}]

{"sheet":"реестр","index":4,"n_rows":53,"n_cols":80,"rows_kept":53,"merged":[[26,0,26,11],[27,0,27,11],[28,0,30,0],[28,1,30,1],[28,2,29,3],[28,4,29,5],[28,6,30,6],[28,7,29,8],[28,9,29,11],[28,12,30,12],[28,13,30,13],[28,14,30,14],[28,15,30,15],[28,16,30,16],[28,17,30,17],[28,18,30,18],[28,19,30,19],[28,20,30,20],[28,21,30,21],[28,22,29,31],[28,32,29,41],[28,42,29,48],[28,49,29,56],[28,57,29,64],[28,65,29,72],[28,73,29,79],[47,0,48,0],[47,1,48,1],[47,9,48,9],[47,19,48,19],[47,20,48,20],[47,29,48,29],[47,30,48,30],[47,31,48,31],[47,39,48,39],[47,40,48,40],[47,41,48,41],[47,47,48,47],[47,48,48,48],[47,54,48,54],[47,55,48,55],[47,56,48,56],[47,62,48,62],[47,63,48,63],[47,64,48,64],[47,70,48,70],[47,71,48,71],[47,72,48,72],[47,77,48,77],[47,78,48,78],[47,79,48,79],[49,0,50,0],[49,1,50,1],[49,9,50,9],[49,19,50,19],[49,20,50,20],[49,29,50,29],[49,30,50,30],[49,31,50,31],[49,39,50,39],[49,40,50,40],[49,41,50,41],[49,47,50,47],[49,48,50,48],[49,54,50,54],[49,55,50,55],[49,56,50,56],[49,62,50,62],[49,63,50,63],[49,64,50,64],[49,70,50,70],[49,71,50,71],[49,72,50,72],[49,77,50,77],[49,78,50,78],[49,79,50,79],[51,0,52,0],[51,1,52,1],[51,9,52,9],[51,19,52,19],[51,20,52,20],[51,29,52,29],[51,30,52,30],[51,31,52,31],[51,39,52,39],[51,40,52,40],[51,41,52,41],[51,47,52,47],[51,48,52,48],[51,54,52,54],[51,55,52,55],[51,56,52,56],[51,62,52,62],[51,63,52,63],[51,64,52,64],[51,70,52,70],[51,71,52,71],[51,72,52,72],[51,77,52,77],[51,78,52,78],[51,79,52,79]]}
["РАСКРЫВАЮЩИЙСЯ СПИСОК"]
[{"$nulls":7},"2020-01-01",null,"2021-01-01",{"$nulls":5},"льготная ставка за 1 кВт (макс.мощность не превышает 15 кВт включительно)","С1.2.1 - пункт 12(1), 13(2) - 13(5) и 14 на уровне напряжения 0,4 кВ и ниже",{"$nulls":5},"0,4 кВ и ниже","деревянных","изолированным","алюминиевым","до 50","одноцепные","да",{"$nulls":3},"0,4 кВ и ниже","в траншеях","одножильные","бумажной","до 50",1,"да",{"$nulls":3},"0,4 кВ и ниже","реклоузеры","до 100",0,"да",null,null,"6/0,4 кВ","однотрансформаторные ","до 25","столбового/мачтового типа","да",{"$nulls":3},"35/6(10) кВ","однотрансформаторные","до 6,3 МВА","закрытого типа","да",{"$nulls":3},"6(10)/0,4 кВ","однотрансформаторные"," до 25 кВА","открытого типа","да",{"$nulls":3},"0,4 кВ и ниже","однофазные","прямого","да"]
[{"$nulls":7},"2025-01-01",null,"2023-12-31",{"$nulls":5},"льготная ставка за 1 кВт - многодетные, инвалиды, чернобольци (макс.мощность не превышает 15 кВт включительно)","С1.2.2 - не пункт 12(1), 13(2) - 13(5) и 14",{"$nulls":5},"1-20 кВ","железобетонных","неизолированным","медным","от 50 до 100","двухцепные","нет",{"$nulls":3},"1-10 кВ","в блоках","многожильные","резиновой или пластмассовой","от 50 до 100",2,"нет",{"$nulls":3},"1-20 кВ","линейные разъединители","от 100 до 250","до 5","нет",null,null,"10/0,4 кВ","двухтрансформаторные ","от 25 до 100","шкафного или киоскового типа","нет",{"$nulls":3},"35/0,4 кВ","двухтрансформаторные","от 6,3 МВА до 10 МВА","открытого типа","нет",{"$nulls":3},"20/0,4 кВ","двухтрансформаторные","от 25 до 100 кВА","закрытого типа","нет",{"$nulls":3},"1-20 кВ","трехфазные","полукосвенного","нет"]
[{"$nulls":15},"за 1 кВ мощности",{"$nulls":6},"27,5-60 кВ","металлических",null,"сталеалюминиевым","от 100 до 200",{"$nulls":5},"15-20 кВ","в каналах",null,null,"от 100 до 200",3,{"$nulls":4},"35 кВ","выключатели нагрузки"," от 250 до 500","от 5 до 10",{"$nulls":3},"20/0,4 кВ",null,"от 100 до 250","блочного типа",{"$nulls":4},"110/35 кВ",null,"от 10 МВА до 16 МВА",{"$nulls":7},"от 100 до 250 кВА",{"$nulls":5},"35 кВ",null,"косвенного"]
[{"$nulls":15},"СТС",{"$nulls":6},"110 кВ и выше","многогранных металлических",null,"стальным","от 200 до 500",{"$nulls":5},"27,5-60 кВ","в туннелях и коллекторах",null,null,"от 200 до 250",4,{"$nulls":4},"110 кВ и выше","распределительные пункты (РП)","от 500 до 1000","от 10 до 15",{"$nulls":3},"6/10 (10/6) кВ",null,"от 250 до 400","встроенного типа",{"$nulls":4},"110/6(10) кВ",null,"от 16 МВА до 25 МВА",{"$nulls":7},"от 250 до 400 кВА",{"$nulls":5},"110 кВ и выше"]
[{"$nulls":15},"Мероприятия по ИПР",{"$nulls":7},"решетчатых металлических",null,null,"от 500 до 800",{"$nulls":5},"110 кВ и выше","в галереях и на эстакадах",null,null,"от 250 до 300","более 4",{"$nulls":5},"комплектные распределительные устройства наружной установки (КРН, КРУН)","свыше 100"," свыше 15",{"$nulls":3},"10/20(20/10) кВ",null,"от 400 до 630",{"$nulls":5},"110/35/6(10) кВ",null,"от 25 МВА до 32 МВА",{"$nulls":7},"от 400 до 630 кВА"]
[{"$nulls":15},"индивидуальный проект",{"$nulls":7},"металлических опорах, за исключением многогранных",null,null,"свыше 800",{"$nulls":6},"горизонтального наклонного бурения",null,null,"от 300 до 400",{"$nulls":6},"переключательные пункты",{"$nulls":5},"6/20 (20/6) кВ",null,"от 630 до 1000",{"$nulls":7},"от 32 МВА до 40 МВА",{"$nulls":7},"от 630 до 1000 кВА"]
[{"$nulls":15},"до 15 кВ (Физ. Лица) по 550 руб. до 01.07.2022",{"$nulls":17},"подводной прокладки",null,null,"от 400 до 500",{"$nulls":14},"от 1000 кВА до 1250",{"$nulls":7},"от 40 МВА до 63 МВА",{"$nulls":7},"от 1000 до 1250 кВА"]
[{"$nulls":15},"до 15 кВ (Юр. Лица ИП) по 550 руб. до 01.07.2022",{"$nulls":20},"от 500 до 800",{"$nulls":14},"от 1250 кВА до 1600",{"$nulls":7},"от 63 МВА до 80 МВА",{"$nulls":7},"от 1250 до 1600 кВА"]
[{"$nulls":15},"до 150 кВ (Физ. Лица) до 01.07.2022",{"$nulls":20},"свыше 800",{"$nulls":14},"от 1600 кВА до 2000",{"$nulls":7},"от 80 МВА до 100 МВА",{"$nulls":7},"от 1600 до 2000 кВА"]
[{"$nulls":15},"до 150 кВ (Юр. Лица ИП) до 01.07.2022",{"$nulls":35},"от 2000 кВА до 2500",{"$nulls":7},"свыше 100 МВА",{"$nulls":7},"от 2000 до 2500 кВА"]
[{"$nulls":15},"до 150 кВ (Юр. Лица ИП) 0,4 кВ и ниже, 200/300 м ПМ=0 с 01.07.2022",{"$nulls":35},"от 2500 кВА до 3150",{"$nulls":15},"от 2500 до 3150 кВА"]
[{"$nulls":15},"до 150 кВ (Юр. Лица ИП 2 полугодие 2022 г.)  ПМ=50% ",{"$nulls":35},"от 3150 кВА до 4000",{"$nulls":15},"свыше 3150 кВА"]
[{"$nulls":51},"свыше 4000"]
{"$rows_empty":8}
[{"$nulls":4},"Количество добавляемых строк (от 1 до 3000)",1]
[null,"выбор из раскрывающегося списка"]
[null,"возможно для редактирования"]
[]
["Расходы на строительство введенных в эксплуатацию объектов электросетевого хозяйства для целей технологического\nприсоединения и для целей реализации иных мероприятий инвестиционной программы территориальной сетевой\nорганизации, а также на обеспечение средствами коммерческого учета электрической энергии (мощности)"]
["за 2021-2023 гг."]
["№ п/п","Объект электросетевого хозяйства/Средство коммерческого учета электрической энергии (мощности)","Заявка на технологическое присоединение",null,"Максимальная мощность по договору ТП, в рамках которого выполнено строительство, кВт",null,"Уровень напряжения (энергопринимающих устройств заявителя), \nкВ","Договор технологического присоединения",null,"Акт об осуществлении технологического присоединения/Уведомление об обеспечении сетевой организацией возможности присоединения к электрическим сетям",null,null,"Год ввода объекта","Наименование потребителя","Местонахождение энергопринимающих устройств (адрес объекта)","Метод расчета\r\n (льготная категория/\r\nставка за 1 квт/\r\nстандартизированная ставка/\r\nинд.проект)","Категория ставки С1 по заявителям","Стоимость строительства по договору ТП (без учета НДС), руб.","C1 по договору (без учета НДС), руб. ","Выручка по договору (без учета НДС), руб.","Расходы на строительство (фактические), тыс. руб.  (без учета НДС)","С1 факт  (без учета НДС), руб.","Воздушные линии ",{"$nulls":9},"Кабельные линии электропередачи",{"$nulls":9},"Реклоузеры, выключатели нагрузки, линейные разъединители, распределительные пункты (РП), комплектные распределительные устройства, переключательные пункты",{"$nulls":6},"Трансформаторные подстанции (ТП)",{"$nulls":7},"Строительство центров питания, подстанций уровнем напряжения 35 кВ и выше (ПС)",{"$nulls":7},"Распределительные трансформаторные подстанции (РТП)",{"$nulls":7},"Cредства коммерческого учета электрической энергии"]
[{"$nulls":17},"Стоимость договора ТП (без учета НДС), всего, руб."]
[null,null,"дата","номер","Ранее присоединенная максимальная мощность, кВт","Максимальная мощность (без учета ранее присоединенной (существующей) максимальной мощности), кВт",null,"дата","номер","дата",null,"номер",{"$nulls":10},"на уровне напряжения","материал опоры","тип провода","материал провода","сечение провода, мм","количество цепей","учитывать объект в расчете","протяженность трассы, \r\nкм","пропускная способность, кВт","расходы на строительство объекта (без учета НДС), тыс. руб.","на уровне напряжения","способ прокладки","жилы","изоляция","сечение жилы, мм²","количество кабелей в траншее/в блоке/ в канале/ в эстакаде/ в трубе, шт","учитывать объект в расчете","протяженность трассы, \r\nкм","пропускная способность, кВт","расходы на строительство объекта  (без учета НДС), тыс. руб.","на уровне напряжения","вид оборудования","номинальный ток, А","количество ячеек, шт","учитывать объект в расчете","пропускная способность, кВт","расходы на строительство объекта (без учета НДС), тыс. руб.","трансформация напряжения, кВ/кВ","количество трансформаторов","мощность трансформатора, кВа (диапазон)","тип подстанции","учитывать объект в расчете","мощность трансформатора, кВа","пропускная способность, кВт","расходы на строительство объекта  (без учета НДС), тыс. руб.","трансформация напряжения, кВ/кВ","количество трансформаторов","мощность трансформатора,МВА (диапазон)","тип подстанции","учитывать объект в расчете","мощность трансформатора, МВА","пропускная способность, кВт","расходы на строительство объекта (без учета НДС), тыс. руб.","трансформация напряжения, кВ/кВ","количество трансформаторов","мощность трансформатора, кВа (диапазон)","тип оборудования","учитывать объект в расчете","мощность трансформатора, кВа","пропускная способность, кВт","расходы на строительство объекта (без учета НДС), тыс. руб.","на уровне напряжения","вид объекта","способ включения","учитывать объект в расчете","Количество точек учета, штук","пропускная способность, кВт","расходы на строительство объекта (без учета НДС), тыс. руб."]
["0"]
[{"$f":"A32+1","v":1},{"$nulls":9},{"$f":"YEAR(J33)","v":1900},{"$nulls":8},{"$f":"S33+R33","v":{"v":0,"d":"0.00"}},{"$f":"AF33+AP33+AW33+BE33+BM33+BU33+CB33","v":{"v":0,"d":"0.000"}}]
[2,{"$nulls":9},{"$f":"YEAR(J34)","v":1900},{"$nulls":8},{"$f":"S34+R34","v":{"v":0,"d":"0.00"}},{"$f":"AF34+AP34+AW34+BE34+BM34+BU34+CB34","v":{"v":0,"d":"0.000"}}]
[3,{"$nulls":9},1900,{"$nulls":8},{"v":0,"d":"0.00"},{"v":0,"d":"0.000"}]
[4,{"$nulls":9},1900,{"$nulls":8},{"v":0,"d":"0.00"},{"v":0,"d":"0.000"}]
[5,{"$nulls":9},1900,{"$nulls":8},{"$f":"S37+R37","v":{"v":0,"d":"0.00"}},{"v":0,"d":"0.000"}]
[6,{"$nulls":9},1900,{"$nulls":8},{"v":0,"d":"0.00"},{"v":0,"d":"0.000"}]
[7,{"$nulls":9},1900,{"$nulls":8},{"v":0,"d":"0.00"},{"v":0,"d":"0.000"}]
[8,{"$nulls":9},1900,{"$nulls":8},{"v":0,"d":"0.00"},{"v":0,"d":"0.000"}]
[9,{"$nulls":9},1900,{"$nulls":8},{"v":0,"d":"0.00"},{"v":0,"d":"0.000"}]
[10,{"$nulls":9},1900,{"$nulls":8},{"v":0,"d":"0.00"},{"v":0,"d":"0.000"}]
[11,{"$nulls":9},1900,{"$nulls":8},{"v":0,"d":"0.00"},{"v":0,"d":"0.000"}]
[12,{"$nulls":9},1900,{"$nulls":8},{"v":0,"d":"0.00"},{"v":0,"d":"0.000"}]
[13,{"$nulls":9},1900,{"$nulls":8},{"v":0,"d":"0.00"},{"v":0,"d":"0.000"}]
[]
[{"$nulls":4},{"$f":"SUBTOTAL(9,E32:E46)","v":{"v":0,"d":"0.0"}},{"$f":"SUBTOTAL(9,F32:F46)","v":{"v":0,"d":"0.0"}},{"$nulls":11},{"$f":"SUBTOTAL(9,R32:R46)","v":{"v":0,"d":"0.0"}},{"$f":"SUBTOTAL(9,S32:S46)","v":{"v":0,"d":"0.0"}},{"v":0,"d":"0.0"},{"v":0,"d":"0.0"},{"v":0,"d":"0.0"},{"$nulls":7},{"$f":"SUBTOTAL(9,AD32:AD46)","v":{"v":0,"d":"0.0"}},{"$f":"SUBTOTAL(9,AE32:AE46)","v":{"v":0,"d":"0.0"}},{"$f":"SUBTOTAL(9,AF32:AF46)","v":{"v":0,"d":"0.0"}},{"$nulls":7},{"$f":"SUBTOTAL(9,AN32:AN46)","v":{"v":0,"d":"0.0"}},{"$f":"SUBTOTAL(9,AO32:AO46)","v":{"v":0,"d":"0.0"}},{"$f":"SUBTOTAL(9,AP32:AP46)","v":{"v":0,"d":"0.0"}},{"$nulls":5},{"$f":"SUBTOTAL(9,AV32:AV46)","v":{"v":0,"d":"0.0"}},{"$f":"SUBTOTAL(9,AW32:AW46)","v":{"v":0,"d":"0.0"}},{"$nulls":5},{"$f":"SUBTOTAL(9,BC32:BC46)","v":{"v":0,"d":"0.0"}},{"$f":"SUBTOTAL(9,BD32:BD46)","v":{"v":0,"d":"0.0"}},{"$f":"SUBTOTAL(9,BE32:BE46)","v":{"v":0,"d":"0.0"}},{"$nulls":5},{"$f":"SUBTOTAL(9,BK32:BK46)","v":{"v":0,"d":"0.0"}},{"$f":"SUBTOTAL(9,BL32:BL46)","v":{"v":0,"d":"0.0"}},{"$f":"SUBTOTAL(9,BM32:BM46)","v":{"v":0,"d":"0.0"}},{"$nulls":5},{"$f":"SUBTOTAL(9,BS32:BS46)","v":{"v":0,"d":"0.0"}},{"$f":"SUBTOTAL(9,BT32:BT46)","v":{"v":0,"d":"0.0"}},{"$f":"SUBTOTAL(9,BU32:BU46)","v":{"v":0,"d":"0.0"}},{"$nulls":4},{"$f":"SUBTOTAL(9,BZ32:BZ46)","v":{"v":0,"d":"0.0"}},null,{"$f":"SUBTOTAL(9,CB32:CB46)","v":{"v":0,"d":"0.0"}}]
[2021,"2019 год",{"$nulls":3},{"$f":"SUMIFS(F33:F46,K33:K46,2021,Q33:Q46,\"С1.2.2 - не пункт 12(1), 13(2) - 13(5) и 14\")","v":0},{"$nulls":3},{"$f":"COUNTIF(K33:K46,\"=2021\")","v":0},{"$nulls":6},{"$f":"COUNTIFS(Q33:Q46,\"=С1.2.2 - не пункт 12(1), 13(2) - 13(5) и 14\",K33:K46,\"=2021\")","v":0},null,null,{"$f":"SUMIF($K$33:$K$46,2021,T33:T46)","v":{"v":0,"d":"0.00"}},{"$f":"SUMIF($K$33:$K$46,2021,U33:U46)","v":{"v":0,"d":"0.00"}},{"$nulls":8},{"$f":"SUMIF($K$33:$K$46,2021,AD33:AD46)","v":{"v":0,"d":"0.00"}},{"$f":"SUMIF($K$33:$K$46,2021,AE33:AE46)","v":{"v":0,"d":"0.00"}},{"$f":"SUMIF($K$33:$K$46,2021,AF33:AF46)","v":{"v":0,"d":"0.00"}},{"$nulls":7},{"$f":"SUMIF($K$33:$K$46,2021,AN33:AN46)","v":{"v":0,"d":"0.00"}},{"$f":"SUMIF($K$33:$K$46,2021,AO33:AO46)","v":{"v":0,"d":"0.00"}},{"$f":"SUMIF($K$33:$K$46,2021,AP33:AP46)","v":{"v":0,"d":"0.00"}},{"$nulls":5},{"$f":"SUMIF($K$33:$K$46,2021,AV33:AV46)","v":{"v":0,"d":"0.00"}},{"$f":"SUMIF($K$33:$K$46,2021,AW33:AW46)","v":{"v":0,"d":"0.00"}},{"$nulls":5},{"$f":"SUMIF($K$33:$K$46,2021,BC33:BC46)","v":{"v":0,"d":"0.00"}},{"$f":"SUMIF($K$33:$K$46,2021,BD33:BD46)","v":{"v":0,"d":"0.00"}},{"$f":"SUMIF($K$33:$K$46,2021,BE33:BE46)","v":{"v":0,"d":"0.00"}},{"$nulls":5},{"$f":"SUMIF($K$33:$K$46,2021,BK33:BK46)","v":{"v":0,"d":"0.00"}},{"$f":"SUMIF($K$33:$K$46,2021,BL33:BL46)","v":{"v":0,"d":"0.00"}},{"$f":"SUMIF($K$33:$K$46,2021,BM33:BM46)","v":{"v":0,"d":"0.00"}},{"$nulls":5},{"$f":"SUMIF($K$33:$K$46,2021,BS33:BS46)","v":{"v":0,"d":"0.00"}},{"$f":"SUMIF($K$33:$K$46,2021,BT33:BT46)","v":{"v":0,"d":"0.00"}},{"$f":"SUMIF($K$33:$K$46,2021,BU33:BU46)","v":{"v":0,"d":"0.00"}},{"$nulls":4},{"$f":"SUMIF($K$33:$K$46,2021,BZ33:BZ46)","v":{"v":0,"d":"0.00"}},{"$f":"SUMIF($K$33:$K$46,2021,CA33:CA46)","v":{"v":0,"d":"0.00"}},{"$f":"SUMIF($K$33:$K$46,2021,CB33:CB46)","v":{"v":0,"d":"0.00"}}]
[{"$nulls":5},{"$f":"SUMIFS(F33:F46,K33:K46,2021,Q33:Q46,\"С1.2.1 - пункт 12(1), 13(2) - 13(5) и 14 на уровне напряжения 0,4 кВ и ниже\")","v":0},{"$nulls":10},{"$f":"COUNTIFS(Q33:Q46,\"=С1.2.1 - пункт 12(1), 13(2) - 13(5) и 14 на уровне напряжения 0,4 кВ и ниже\",K33:K46,\"=2021\")","v":0}]
["2022","2020 год",{"$nulls":3},{"$f":"SUMIFS(F33:F46,K33:K46,2022,Q33:Q46,\"С1.2.2 - не пункт 12(1), 13(2) - 13(5) и 14\")","v":0},{"$nulls":3},{"$f":"COUNTIF(K33:K46,\"=2022\")","v":0},{"$nulls":6},{"$f":"COUNTIFS(Q33:Q46,\"=С1.2.2 - не пункт 12(1), 13(2) - 13(5) и 14\",K33:K46,\"=2022\")","v":0},null,null,{"$f":"SUMIF($K$33:$K$46,2022,T33:T46)","v":{"v":0,"d":"0.00"}},{"$f":"SUMIF($K$33:$K$46,2022,U33:U46)","v":{"v":0,"d":"0.00"}},{"$nulls":8},{"$f":"SUMIF($K$33:$K$46,2022,AD33:AD46)","v":{"v":0,"d":"0.00"}},{"$f":"SUMIF($K$33:$K$46,2022,AE33:AE46)","v":{"v":0,"d":"0.00"}},{"$f":"SUMIF($K$33:$K$46,2022,AF33:AF46)","v":{"v":0,"d":"0.00"}},{"$nulls":7},{"$f":"SUMIF($K$33:$K$46,2022,AN33:AN46)","v":{"v":0,"d":"0.00"}},{"$f":"SUMIF($K$33:$K$46,2022,AO33:AO46)","v":{"v":0,"d":"0.00"}},{"$f":"SUMIF($K$33:$K$46,2022,AP33:AP46)","v":{"v":0,"d":"0.00"}},{"$nulls":5},{"$f":"SUMIF($K$33:$K$46,2022,AV33:AV46)","v":{"v":0,"d":"0.00"}},{"$f":"SUMIF($K$33:$K$46,2022,AW33:AW46)","v":{"v":0,"d":"0.00"}},{"$nulls":5},{"$f":"SUMIF($K$33:$K$46,2022,BC33:BC46)","v":{"v":0,"d":"0.00"}},{"$f":"SUMIF($K$33:$K$46,2022,BD33:BD46)","v":{"v":0,"d":"0.00"}},{"$f":"SUMIF($K$33:$K$46,2022,BE33:BE46)","v":{"v":0,"d":"0.00"}},{"$nulls":5},{"$f":"SUMIF($K$33:$K$46,2022,BK33:BK46)","v":{"v":0,"d":"0.00"}},{"$f":"SUMIF($K$33:$K$46,2022,BL33:BL46)","v":{"v":0,"d":"0.00"}},{"$f":"SUMIF($K$33:$K$46,2022,BM33:BM46)","v":{"v":0,"d":"0.00"}},{"$nulls":5},{"$f":"SUMIF($K$33:$K$46,2022,BS33:BS46)","v":{"v":0,"d":"0.00"}},{"$f":"SUMIF($K$33:$K$46,2022,BT33:BT46)","v":{"v":0,"d":"0.00"}},{"$f":"SUMIF($K$33:$K$46,2022,BU33:BU46)","v":{"v":0,"d":"0.00"}},{"$nulls":4},{"$f":"SUMIF($K$33:$K$46,2022,BZ33:BZ46)","v":{"v":0,"d":"0.00"}},{"$f":"SUMIF($K$33:$K$46,2022,CA33:CA46)","v":{"v":0,"d":"0.00"}},{"$f":"SUMIF($K$33:$K$46,2022,CB33:CB46)","v":{"v":0,"d":"0.00"}}]
[{"$nulls":5},{"$f":"SUMIFS(F33:F46,K33:K46,2022,Q33:Q46,\"С1.2.1 - пункт 12(1), 13(2) - 13(5) и 14 на уровне напряжения 0,4 кВ и ниже\")","v":0},{"$nulls":10},{"$f":"COUNTIFS(Q33:Q46,\"=С1.2.1 - пункт 12(1), 13(2) - 13(5) и 14 на уровне напряжения 0,4 кВ и ниже\",K33:K46,\"=2022\")","v":0}]
["2023","2021 год",{"$nulls":3},{"$f":"SUMIFS(F33:F46,K33:K46,2023,Q33:Q46,\"С1.2.2 - не пункт 12(1), 13(2) - 13(5) и 14\")","v":0},{"$nulls":3},{"$f":"COUNTIF(K33:K46,\"=2023\")","v":0},{"$nulls":6},{"$f":"COUNTIFS(Q33:Q46,\"=С1.2.2 - не пункт 12(1), 13(2) - 13(5) и 14\",K33:K46,\"=2023\")","v":0},null,null,{"$f":"SUMIF($K$33:$K$46,2023,T33:T46)","v":{"v":0,"d":"0.00"}},{"$f":"SUMIF($K$33:$K$46,2023,U33:U46)","v":{"v":0,"d":"0.00"}},{"$nulls":8},{"$f":"SUMIF($K$33:$K$46,2023,AD33:AD46)","v":{"v":0,"d":"0.00"}},{"$f":"SUMIF($K$33:$K$46,2023,AE33:AE46)","v":{"v":0,"d":"0.00"}},{"$f":"SUMIF($K$33:$K$46,2023,AF33:AF46)","v":{"v":0,"d":"0.00"}},{"$nulls":7},{"$f":"SUMIF($K$33:$K$46,2023,AN33:AN46)","v":{"v":0,"d":"0.00"}},{"$f":"SUMIF($K$33:$K$46,2023,AO33:AO46)","v":{"v":0,"d":"0.00"}},{"$f":"SUMIF($K$33:$K$46,2023,AP33:AP46)","v":{"v":0,"d":"0.00"}},{"$nulls":5},{"$f":"SUMIF($K$33:$K$46,2023,AV33:AV46)","v":{"v":0,"d":"0.00"}},{"$f":"SUMIF($K$33:$K$46,2023,AW33:AW46)","v":{"v":0,"d":"0.00"}},{"$nulls":5},{"$f":"SUMIF($K$33:$K$46,2023,BC33:BC46)","v":{"v":0,"d":"0.00"}},{"$f":"SUMIF($K$33:$K$46,2023,BD33:BD46)","v":{"v":0,"d":"0.00"}},{"$f":"SUMIF($K$33:$K$46,2023,BE33:BE46)","v":{"v":0,"d":"0.00"}},{"$nulls":5},{"$f":"SUMIF($K$33:$K$46,2023,BK33:BK46)","v":{"v":0,"d":"0.00"}},{"$f":"SUMIF($K$33:$K$46,2023,BL33:BL46)","v":{"v":0,"d":"0.00"}},{"$f":"SUMIF($K$33:$K$46,2023,BM33:BM46)","v":{"v":0,"d":"0.00"}},{"$nulls":5},{"$f":"SUMIF($K$33:$K$46,2023,BS33:BS46)","v":{"v":0,"d":"0.00"}},{"$f":"SUMIF($K$33:$K$46,2023,BT33:BT46)","v":{"v":0,"d":"0.00"}},{"$f":"SUMIF($K$33:$K$46,2023,BU33:BU46)","v":{"v":0,"d":"0.00"}},{"$nulls":4},{"$f":"SUMIF($K$33:$K$46,2023,BZ33:BZ46)","v":{"v":0,"d":"0.00"}},{"$f":"SUMIF($K$33:$K$46,2023,CA33:CA46)","v":{"v":0,"d":"0.00"}},{"$f":"SUMIF($K$33:$K$46,2023,CB33:CB46)","v":{"v":0,"d":"0.00"}}]
[{"$nulls":5},{"$f":"SUMIFS(F33:F46,K33:K46,2023,Q33:Q46,\"С1.2.1 - пункт 12(1), 13(2) - 13(5) и 14 на уровне напряжения 0,4 кВ и ниже\")","v":0},{"$nulls":10},{"$f":"COUNTIFS(Q33:Q46,\"=С1.2.1 - пункт 12(1), 13(2) - 13(5) и 14 на уровне напряжения 0,4 кВ и ниже\",K33:K46,\"=2023\")","v":0}]